Cogmind - Beta 13 @@@ ROGUE MODE // 2024.07.29 @ 21:01:09 Player: Havel Result: Destroyed by D-53 Grenadier with Mini Grenade Launcher Performance ------------- Evolutions (0) 0 Regions Visited (2) 400 Robots Destroyed (6) 30 Value Destroyed (63) 63 Prototype IDs (0) 0 Alien Tech Used (0) 0 Bonus (0) 0 TOTAL SCORE: 493 Bonus ------- None Cogmind --------- Core Integrity 0/250 Matter 293/300 Energy 95/100 System Corruption 0% Temperature Cool (0) Movement Rolling (80) Location -10/Mines Parts ------- > --- POWER (1) -------- (None) > --- PROPULSION (2) --- Wheel > --- UTILITY (2) ------ (None) > --- WEAPON (2) ------- Light Assault Rifle Light Assault Rifle > --- INVENTORY (5) ---- Light Ion Engine Wheel Heat Sink Improved Terrain Scanner Peak State ------------ > --- POWER ------------ Light Ion Engine > --- PROPULSION ------- Wheel Wheel > --- UTILITY ---------- Medium Matter Pod Seismic Detector > --- WEAPON ----------- Light Assault Rifle Light Assault Rifle > --- INVENTORY -------- Light Ion Engine Wheel Wheel Improved Terrain Scanner [Rating: 7] Favorites ----------- Power Light Ion Engine Engine Light Ion Engine Propulsion Wheel Leg Aluminum Leg Wheel Wheel Utility Medium Matter Pod Device Seismic Detector Storage Medium Matter Pod Weapon Light Assault Rifle Ballistic Gun Light Assault Rifle Launcher Grenade Launcher Build | -11 -10 -10 ------- Run | Yrd Mat Min Slots Evolved . | . . . Power . | . . . Propulsion . | . . . Utility . | . . . Weapon . | . . . Parts Attached 12 | 10 1 1 Power 1 | 1 . . Engine 1 | 1 . . Core . | . . . Reactor . | . . . Propulsion 5 | 5 . . Treads . | . . . Leg 2 | 2 . . Wheel 3 | 3 . . Hover . | . . . Flight . | . . . Utility 2 | 2 . . Device 1 | 1 . . Storage 1 | 1 . . Processor . | . . . Hackware . | . . . Protection . | . . . Artifact . | . . . Weapon 4 | 2 1 1 Energy Gun . | . . . Energy Cannon . | . . . Ballistic Gun 3 | 2 . 1 Ballistic Cannon . | . . . Launcher 1 | . 1 . Special Weapon . | . . . Impact Weapon . | . . . Slashing Weapon . | . . . Piercing Weapon . | . . . Special Melee Weapon . | . . . Unidentified Prototypes . | . . . Parts Lost 5 | . . 5 Power 1 | . . 1 Propulsion 1 | . . 1 Utility 2 | . . 2 Weapon 1 | . . 1 Highest Loss Streak 5 | . . 5 To Critical Strikes . | . . . Average Slot Usage (%) 97 | . 100 94 Engine 14 | . 14 14 Wheel 28 | . 28 28 Device 13 | . 14 12 Storage 13 | . 14 12 Ballistic Gun 16 | . 20 14 Launcher 10 | . 8 12 Naked Turns . | . . . Heaviest Build 10 | 8 10 10 Greatest Support 20 | 20 20 20 Greatest Overweight (x) . | . . . Average Overweight (x) . | . . . Largest Inventory Capacity 5 | 5 5 5 Average Capacity 5 | 5 5 5 Most Carried 5 | 5 5 5 Average Carried 3 | 3 4 4 Final Capacity 5 | 5 5 5 Final Carried 5 | 5 5 4 Class Distribution -------------------- 100% | Mutant Dominant Class ---------------- Mutant | -10/Materials Mutant | -10/Mines Resources | -11 -10 -10 ----------- Run | Yrd Mat Min Matter Collected 401 | 401 . . Remotely . | . . . Salvage Created 151 | 151 . . Parts 15 | 15 . . Haulers Intercepted . | . . . Recyclers Shooed . | . . . Parts Field Recycled . | . . . Retrieved Matter . | . . . Parts Self-Destructed . | . . . Prevented . | . . . Kills | -11 -10 -10 ------- Run | Yrd Mat Min Combat Hostiles Destroyed 1 | 1 . . Guns 1 | 1 . . Classes Destroyed 3 | 3 . . Worker 1 | 1 . . Tunneler 4 | 4 . . Grunt 1 | 1 . . Best Kill Streak 3 | 3 . . Combat Bots Only 1 | 1 . . Max Kills in Single Turn 1 | 1 . . Gunslinging . | . . . Exploded . | . . . Melee . | . . . Uniques/NPCs Destroyed . | . . . Combat | -11 -10 -10 -------- Run | Yrd Mat Min Hostile Shots Fired 21 | 6 . 15 Missed 1 | 1 . . Damage Taken 568 | 56 . 512 Core 255 | 11 . 244 Absorbed by Shields . | . . . Core Remaining (%) 95 | 95 . . Volleys Fired 29 | 25 . 4 Largest 2 | 2 . 2 Hottest 50 | 40 . 50 Shots Fired 56 | 48 . 8 Gun 53 | 48 . 5 Cannon . | . . . Launcher 3 | . . 3 Special . | . . . Kinetic 53 | 48 . 5 Thermal . | . . . Explosive 3 | . . 3 Electromagnetic . | . . . Robot Hit Streak 13 | 13 . 10 Robot Miss Streak 2 | 2 . 1 Penetration Max . | . . . Secondary Targets . | . . . Shots Hit Robots 41 | 34 . 7 Core Hits 19 | 11 . 8 Critical Kills . | . . . Critical Parts Destroyed . | . . . Critical Strikes . | . . . Melee Attacks . | . . . Impact . | . . . Slashing . | . . . Piercing . | . . . Sneak Attacks . | . . . Combat Hostiles . | . . . Follow-up Attacks . | . . . Damage Inflicted 357 | 272 . 85 Guns 296 | 272 . 24 Cannons . | . . . Explosions 61 | . . 61 Melee . | . . . Ramming . | . . . Kinetic 296 | 272 . 24 Thermal . | . . . Explosive 61 | . . 61 Electromagnetic . | . . . Impact . | . . . Slashing . | . . . Piercing . | . . . Highest Corruption . | . . . Average Corruption . | . . . Corruption Purged . | . . . Corruption Blocked . | . . . Overload Shots . | . . . Overflow Damage . | . . . Projectiles . | . . . Explosions . | . . . Melee . | . . . Knockbacks . | . . . Impact . | . . . Kinetic . | . . . Secondary . | . . . Self-Inflicted Damage . | . . . Shots . | . . . Rammed . | . . . Targets Rammed . | . . . Kicked . | . . . Crushed . | . . . Highest Temperature 12 | 12 . 10 Average Temperature 7 | 7 . 7 Received Heat Transfer 30 | 30 . . Siege Activations . | . . . Robots Corrupted . | . . . Combat Hostiles . | . . . Parts Fried . | . . . Impact Corruptions . | . . . Robots Melted . | . . . Combat Hostiles . | . . . Parts Melted . | . . . Heat Transferred . | . . . Parts Sabotaged . | . . . Parts Stolen . | . . . Parts Stripped . | . . . Power Chain Reactions . | . . . Alert | -11 -10 -10 ------- Run | Yrd Mat Min Peak Influence 45 | 45 29 15 Initial 29 | . 29 10 Average 19 | 20 29 9 Maximum Alert Level . | . . . Low Security (%) 100 | 100 100 100 Level 1 . | . . . Level 2 . | . . . Level 3 . | . . . Level 4 . | . . . Level 5 . | . . . High Security . | . . . Max Security . | . . . Squads Dispatched . | . . . Investigation . | . . . Extermination . | . . . Reinforcement . | . . . Assault . | . . . Garrison . | . . . Intercept . | . . . Searches Triggered . | . . . Construction Impeded . | . . . Haulers Reinforced . | . . . Active Scanning Responses . | . . . Cargo Convoy Interrupts . | . . . Stealth | -11 -10 -10 --------- Run | Yrd Mat Min Distress Signals . | . . . Communications Jammed . | . . . Distress Signals . | . . . Times Spotted 5 | 1 . 4 Peak Tracking Total 2 | 1 . 2 Tactical Retreats . | . . . Traps | -11 -10 -10 ------- Run | Yrd Mat Min Traps Triggered . | . . . Indirectly . | . . . Trap Hack Attempts . | . . . Triggered . | . . . Disarmed . | . . . Reprogrammed . | . . . Reused . | . . . Traps Extracted . | . . . Installed . | . . . Triggered . | . . . Machines | -11 -10 -10 ---------- Run | Yrd Mat Min Machines Disabled . | . . . Max in Single Turn . | . . . Machines Repaired . | . . . Machines Dismantled . | . . . Machines Sabotaged . | . . . Overloaded Fab Kills . | . . . Hacking | -11 -10 -10 --------- Run | Yrd Mat Min Machines Accessed . | . . . Terminals . | . . . Fabricators . | . . . Repair Stations . | . . . Recycling Units . | . . . Scanalyzers . | . . . Garrison Access . | . . . Total Hacks . | . . . Successful . | . . . Failed . | . . . Catastrophic . | . . . Database Lockouts . | . . . Manual . | . . . Terminals . | . . . Fabricators . | . . . Repair Stations . | . . . Recycling Units . | . . . Scanalyzers . | . . . Garrison Access . | . . . Terminal Hacks . | . . . Fabricator Hacks . | . . . Repair Station Hacks . | . . . Recycling Unit Hacks . | . . . Scanalyzer . | . . . Garrison Access Hacks . | . . . Unauthorized Hacks . | . . . Terminals . | . . . Fabricators . | . . . Repair Stations . | . . . Recycling Units . | . . . Scanalyzers . | . . . Garrison Access . | . . . Data Cores Recovered . | . . . Used . | . . . Hacking Detections . | . . . Full Trace Events . | . . . Feedback Events . | . . . Feedback Blocked . | . . . Robot Schematics Acquired . | . . . Robots Built . | . . . Authchips . | . . . Time . | . . . Total Robot Build Rating . | . . . Part Schematics Acquired . | . . . Parts Built . | . . . Authchips . | . . . Time . | . . . Total Part Build Rating . | . . . Parts Repaired . | . . . Time . | . . . Parts Recycled . | . . . Recycled Matter . | . . . Retrieved Matter . | . . . Retrieved Components . | . . . Parts Scanalyzed . | . . . Part Schematics Acquired . | . . . Parts Damaged . | . . . Bothacking | -11 -10 -10 ------------ Run | Yrd Mat Min Used RIF Installer . | . . . Robots Hacked . | . . . Non-combat . | . . . Combat . | . . . Robot Hacks Applied . | . . . Relay Couplers Released . | . . . Fabnet Peak Effective % . | . . . Robots Rewired . | . . . Allies Hacked . | . . . Hacks Repelled . | . . . Allies | -11 -10 -10 -------- Run | Yrd Mat Min Total Allies . | . . . Largest Group . | . . . Highest-Rated Group . | . . . Highest-Rated Ally . | . . . Total Orders . | . . . Ally Attacks . | . . . Total Damage . | . . . Kills . | . . . Allies Corrupted . | . . . Allies Melted . | . . . Intel | -11 -10 -10 ------- Run | Yrd Mat Min Robot Analysis Total . | . . . Derelict Logs Recovered . | . . . Drone Launches . | . . . Drone Recoveries . | . . . Exploration | -11 -10 -10 ------------- Run | Yrd Mat Min Turns Passed 355 | 205 65 85 Spaces Moved 283 | 136 70 77 Core 17 | 17 . . Treads . | . . . Legs 26 | 26 . . Wheels 240 | 93 70 77 Hover . | . . . Flight . | . . . Fastest Speed 50 | 50 80 80 Average Speed 81 | 83 80 80 Slowest Speed 120 | 120 80 80 Overloaded Moves . | . . . Propulsion Burnouts . | . . . Robots Hopped . | . . . Cave-ins Triggered . | . . . Exploration Rate (%) 17 | 6 19 26 Regions Visited 2 Branch Regions 1 Pre-discovered Areas . | . . . Known Exits Taken . | . . . Unknown Exits Taken 2 | 1 1 . Scrap Searched . | . . . Spaces Dug . | . . . Terrain Destroyed 13 | . . 13 Melee . | . . . Projectile . | . . . AOE 13 | . . 13 Terrain Rammed . | . . . Walls Destroyed . | . . . Machines Disabled . | . . . Actions | -11 -10 -10 --------- Run | Yrd Mat Min Total 361 | 188 78 95 Wait 17 | . 6 11 Move 281 | 135 69 77 Hop . | . . . Pick Up 17 | 15 1 1 Fast Attach . | . . . Attach 8 | 7 . 1 Detach . | . . . Swap 4 | 3 1 . Drop 5 | 3 1 1 Fire 29 | 25 . 4 Melee . | . . . Ram . | . . . Kick . | . . . Crush . | . . . Escape Stasis . | . . . Rewire . | . . . Trap . | . . . Miscellaneous . | . . . Route ------- -11/Scrapyard -10/Materials -10/Mines (discovered 1 exit: [*Mat]) History --------- Turn | Location | Event 2 | -11/Scrapyard | Met Revision 17 80 | -11/Scrapyard | Discovered new exit (range 8) 206 | -11/Scrapyard | Entered Materials 252 | -10/Materials | Discovered new exit (range 7) 261 | -10/Materials | Met 8R-AWN 271 | -10/Materials | Entered Mines 272 | -10/Mines | Followed 8R-AWN into the Mines 291 | -10/Mines | Discovered new exit (range 6) 316 | -10/Mines | Assembled infested the area 318 | -10/Mines | Build established: Mutant 347 | -10/Mines | Core integrity fell below 50% 355 | -10/Mines | Core integrity fell below 20% 356 | -10/Mines | Destroyed by D-53 Grenadier with Mini Grenade Launcher Last Messages --------------- HV Slug penetrates as-66705. The unstable cave ceiling collapses. Grenade Launcher destroyed. Med. Matter Pod destroyed. The unstable cave ceiling collapses. Lgt. Ion Engine destroyed. HV Slug penetrates as-66705. HV Slug penetrates as-61787. as-61787 suffers critical hit (Destroy). as-61787 destroyed. The unstable cave ceiling collapses. HV Slug penetrates as-66705. as-66705 destroyed. HV Slug penetrates as-85653. as-85653 suffers critical hit (Destroy). as-66978 suffers critical hit (Destroy). HV Slug penetrates Wall. HV Slug penetrates Earth. The unstable cave ceiling collapses. Wheel destroyed. Map ----- +----------------------------------------------------+ | ???????????????????????????????????? | | ???????????????????????????????????? | | ???????????????????????????????????? | | ???????????????????????????????????? | | ???????????????????????????????????? | | ???????????????????????????????????? | | ???????????????????????????????????? | | ???????????????????????????????????? | | ???????????????????????????????????? | | ???????????????????????????????????? | | ?????????????????### ??????????????? | | ????????????????## ??????????????? | | ????????????????# ??????????????? | | ????????????????# ???????????????? | | ???????????#???## ???????????????? | | ???????????# ?## ???????????###?? | | ???????????# ## #??#######?# #?? | | ??????????## #### ## #??? | | ??????????# ### # #??? | | ??????????# #??? | | ??????????????# #???? | | ??????????????# #????? | | ??????????????# #????? | | ??????????????# #????? | | ?????????????## d%d #????? | | ?????????????# # @ #????? | | ?????????????# ##????? | | ?????????????# # # ###????? | | ????????????## ##### #??????? | | ???????????## ##???## % ###??????? | | ??????????## #????? % ????????? | | ??????????# #???? % ????????? | | ??????????# #???? % ????????? | | ??????????# #??? % ????????? | | ??????????# #?? % ????????? | | ??????????# ##? #????????? | | ???????##### ## ##????????? | | ????#??# ## ??????????? | | ????# ## ### # ??????????? | | ????# ## ##??### ??????????? | | ????#### ## #?????? ??????????? | | ???????# ### ##??????????????????? | | ???????# #?####???????????????????? | | ???????# ##???????????????????????? | | ???????# ###?????????????????????? | | ???????# ###???????????????????? | | ???????# """ ##??????????????????? | | ####???# """ #??????????????????? | | # !##### """ #??????????????????? | | =